fUSD/lending_fUSD_20240524
["ID","MTS","AMOUNT","RATE_DAILY","PERIOD"]
[327886495,1716580249292,-151.0,0.000276,7]
[327886497,1716580249302,-266.795098,0.000276,7]
[327886499,1716580249311,-266.795098,0.000276,7]
[327886501,1716580249320,-151.0,0.000276,7]
[327886503,1716580249330,-151.0,0.000276,7]
[327886505,1716580249339,-151.0,0.000276,7]
[327886507,1716580249349,-151.0,0.000276,7]
[327886509,1716580249358,-263.681164,0.000276,7]
[327886511,1716580249367,-151.0,0.000276,7]
[327886513,1716580249376,-263.681164,0.000276,7]
[327886515,1716580249385,-150.0,0.00027628,2]
[327886517,1716580249395,-150.0,0.00027669,2]
[327886519,1716580249404,-150.0,0.00027727,2]
[327886521,1716580249413,-150.0,0.00027763,2]
[327886523,1716580249423,-150.0,0.0002777,2]
[327886525,1716580249432,-1000.0,0.00027869,2]
[327886527,1716580249441,-150.0,0.000279,5]
[327886529,1716580249450,-166.66666666,0.00027934,2]
[327886531,1716580249460,-150.0,0.00027978,2]
[327886533,1716580249469,-150.0,0.00027995,2]
[327886535,1716580249479,-20000.0,0.00028,3]
[327886537,1716580249488,-7874.06300079,0.00028,2]
[327886539,1716580249497,-155.0,0.00028,2]
[327886541,1716580249507,-623.0,0.00028,10]
[327886543,1716580249516,-199.99999901,0.00028,5]
[327886545,1716580249526,-150.0,0.00028029,2]
[327886547,1716580249535,-150.0,0.00028056,2]
[327886549,1716580249546,-150.0,0.00028082,2]
[327886550,1716580249556,-500.0,0.00028102,2]
[327886553,1716580249565,-500.0,0.00028102,2]
[327886555,1716580249575,-154.45963167,0.0002812,2]
[327886557,1716580249585,-6103.1360419,0.00028127,2]
[327886558,1716580249594,-150.0,0.00028168,2]
[327886560,1716580249603,-154.30397504,0.00028202,2]
[327886563,1716580249612,-150.0,0.00028266,2]
[327886565,1716580249622,-150.0,0.00028268,2]
[327886567,1716580249631,-161.0350808,0.00028276,2]
[327886568,1716580249640,-16773.509894,0.00028276,2]
[327886569,1716580249650,-704.0372724,0.00028276,2]
[327886570,1716580249658,-157.82414398,0.00028277,2]
[327886571,1716580249667,-2239.0572256,0.00028295,2]
[327886572,1716580249676,-150.0,0.00028297,2]
[327886573,1716580249686,-97938.76581172,0.00028314,4]
[327886574,1716580249695,-150.0,0.00028353,2]
[327886575,1716580249704,-150.0,0.00028363,2]
[327886576,1716580249714,-464.54,0.000284,2]
[327886577,1716580249723,-743.96,0.000284,2]
[327886578,1716580249732,-150.0,0.000284,5]
[327886579,1716580249741,-150.0,0.00028486,2]
[327886581,1716580249750,-150.0,0.00028497,2]
[327886582,1716580249759,-150.0,0.00028505,2]
[327886584,1716580249768,-150.0,0.00028533,2]
[327886586,1716580249777,-154.45963167,0.00028538,2]
[327886588,1716580249787,-150.0,0.0002855,2]
[327886590,1716580249798,-150.0,0.00028563,2]
[327886592,1716580249811,-382.52,0.00028564,2]
[327886595,1716580249822,-15235.1579139,0.0002863,14]
[327886597,1716580249830,-150.0,0.00028641,2]
[327886599,1716580249840,-150.0,0.00028649,2]
[327886600,1716580249851,-150.0,0.0002865,2]
[327886603,1716580249860,-150.0,0.00028761,2]
[327886604,1716580249870,-150.0,0.00028793,2]
[327886606,1716580249881,-150.0,0.00028799,2]
[327886607,1716580249890,-150.0,0.00028803,2]
[327886608,1716580249900,-151.19086018,0.00028818,2]
[327886609,1716580249909,-151.19086018,0.00028824,2]
[327886610,1716580249919,-6103.1360419,0.00028855,2]
[327886611,1716580249928,-150.0,0.00028879,2]
[327886612,1716580249937,-150.0,0.00028893,2]
[327886613,1716580249947,-150.0,0.00028897,2]
[327886614,1716580249956,-150.0,0.000289,6]
[327886615,1716580249966,-150.0,0.0002891,2]
[327886616,1716580249975,-150.0,0.0002893,2]
[327886617,1716580249985,-154.57456769,0.00028944,2]
[327886618,1716580249995,-20000.0,0.00029,3]
[327886620,1716580250004,-2243.38087943,0.00029,2]
[327886622,1716580250013,-15081.41410965,0.00029,10]
[327886624,1716580250022,-419.15,0.00029,2]
[327886626,1716580250032,-500.0,0.00029,2]
[327886628,1716580250042,-500.0,0.00029,2]
[327886629,1716580250053,-500.0,0.00029,2]
[327886630,1716580250062,-500.0,0.00029,2]
[327886631,1716580250071,-500.0,0.00029,2]
[327886632,1716580250080,-500.0,0.00029,2]
[327886633,1716580250089,-500.0,0.00029,2]
[327886634,1716580250099,-500.0,0.00029,2]
[327886635,1716580250109,-500.0,0.00029,2]
[327886636,1716580250118,-500.0,0.00029,2]
[327886637,1716580250127,-500.0,0.00029,2]
[327886638,1716580250137,-500.0,0.00029,2]
[327886639,1716580250146,-500.0,0.00029,2]
[327886640,1716580250155,-500.0,0.00029,2]
[327886641,1716580250164,-500.0,0.00029,2]
[327886642,1716580250174,-500.0,0.00029,2]
[327886643,1716580250183,-500.0,0.00029,2]
[327886644,1716580250192,-500.0,0.00029,2]
[327886645,1716580250201,-500.0,0.00029,2]
[327886646,1716580250211,-500.0,0.00029,2]
[327886647,1716580250220,-500.0,0.00029,2]
[327886648,1716580250229,-500.0,0.00029,2]
[327886649,1716580250239,-500.0,0.00029,2]
[327886650,1716580250248,-500.0,0.00029,2]
[327886651,1716580250256,-500.0,0.00029,2]
[327886654,1716580250266,-500.0,0.00029,2]
[327886655,1716580250275,-500.0,0.00029,2]
[327886657,1716580250284,-500.0,0.00029,2]
[327886659,1716580250293,-500.0,0.00029,2]
[327886661,1716580250305,-500.0,0.00029,2]
[327886663,1716580250315,-500.0,0.00029,2]
[327886665,1716580250324,-500.0,0.00029,2]
[327886668,1716580250334,-500.0,0.00029,2]
[327886669,1716580250344,-500.0,0.00029,2]
[327886671,1716580250354,-500.0,0.00029,2]
[327886673,1716580250363,-500.0,0.00029,2]
[327886676,1716580250373,-500.0,0.00029,2]
[327886677,1716580250383,-500.0,0.00029,2]
[327886680,1716580250393,-500.0,0.00029,2]
[327886681,1716580250402,-500.0,0.00029,2]
[327886683,1716580250412,-500.0,0.00029,2]
[327886685,1716580250422,-500.0,0.00029,2]
[327886687,1716580250432,-500.0,0.00029,2]
[327886689,1716580250441,-500.0,0.00029,2]
[327886691,1716580250451,-500.0,0.00029,2]
[327886693,1716580250461,-500.0,0.00029,2]
[327886696,1716580250471,-541.37,0.00029,2]
[327886698,1716580250480,-500.0,0.00029,2]
[327886699,1716580250489,-500.0,0.00029,2]
[327886701,1716580250499,-500.0,0.00029,2]
[327886704,1716580250509,-297.7,0.00029,2]
[327886705,1716580250518,-500.0,0.00029,2]
[327886708,1716580250529,-500.0,0.00029,2]
[327886710,1716580250539,-150.0,0.00029052,2]
[327886712,1716580250555,-153.51597192,0.00029067,2]
[327886714,1716580250565,-150.0,0.00029074,2]
[327886716,1716580250575,-150.0,0.00029086,2]
[327886717,1716580250586,-150.0,0.00029091,2]
[327886719,1716580250596,-150.0,0.00029093,2]
[327886722,1716580250606,-150.0,0.00029129,2]
[327886724,1716580250616,-150.0,0.00029131,2]
[327886726,1716580250626,-500.0,0.00029198,2]
[327886727,1716580250635,-500.0,0.00029198,2]
[327886730,1716580250645,-150.0,0.00029215,2]
[327886731,1716580250655,-150.0,0.00029231,2]
[327886733,1716580250665,-151.19086018,0.00029231,2]
[327886736,1716580250675,-150.0,0.00029258,2]
[327886737,1716580250684,-786.6627749,0.00029262,2]
[327886739,1716580250694,-150.0,0.00029319,2]
[327886741,1716580250703,-150.0,0.00029321,2]
[327886743,1716580250712,-7372.7038036,0.00029325,2]
[327886745,1716580250721,-155.16,0.00029349,2]
[327886747,1716580250731,-150.0,0.00029403,2]
[327886749,1716580250740,-150.0,0.00029411,2]
[327886751,1716580250749,-150.0,0.00029427,2]
[327886753,1716580250758,-319.91924595,0.00029451,2]
[327886755,1716580250767,-155.76744126,0.00029471,2]
[327886757,1716580250776,-150.0,0.00029494,2]
[327886759,1716580250786,-225.59952986,0.000295,3]
[327886761,1716580250796,-61905.9852207,0.00029523,2]
[327886763,1716580250811,-150.0,0.00029551,2]
[327886765,1716580250820,-1500.0,0.00029563,2]
[327886767,1716580250829,-150.0,0.00029575,2]
[327886769,1716580250840,-6103.1360419,0.00029582,2]
[327886772,1716580250850,-150.0,0.00029598,2]
[327886773,1716580250859,-150.0,0.00029605,2]
[327886775,1716580250868,-150.0,0.00029658,2]
[327886778,1716580250878,-1500.0,0.0002968,2]
[327886779,1716580250889,-150.0,0.00029722,2]
[327886781,1716580250900,-1500.0,0.00029759,2]
[327886783,1716580250909,-709.516594,0.000298,2]
[327886785,1716580250918,-152.0,0.00029843,3]
[327886786,1716580250928,-157.96956562,0.00029918,2]
[327886787,1716580250938,-150.0,0.0002995,2]
[327886788,1716580250948,-20000.0,0.0003,3]
[327886789,1716580250958,-1898.40274315,0.0003,2]
[327886790,1716580250968,-11039.249481,0.0003,3]
[327886791,1716580250977,-10000.0,0.0003,15]
[327886792,1716580250987,-2000.0,0.0003,2]
[327886793,1716580250997,-1010822.33944025,0.0003,10]
[327886794,1716580251006,-1875.47277783,0.0003,4]
[327886795,1716580251015,-684.62602903,0.0003,4]
[327886796,1716580251025,-451.67709206,0.0003,4]
[327886797,1716580251034,-155.86666856,0.0003,4]
[327886798,1716580251043,-8713.44145569,0.0003,4]
[327886799,1716580251056,-150.0,0.0003,2]
[327886800,1716580251065,-207.0,0.0003,2]
[327886801,1716580251074,-150.0,0.00030044,2]
[327886802,1716580251083,-150.0,0.00030069,2]
[327886803,1716580251092,-300.0,0.00030074,2]
[327886804,1716580251102,-150.0,0.00030097,2]
[327886805,1716580251111,-150.0,0.00030136,2]
[327886806,1716580251122,-150.0,0.00030169,2]
[327886807,1716580251132,-150.0,0.0003017,2]
[327886809,1716580251141,-150.0,0.00030172,2]
[327886811,1716580251150,-279.1586375,0.00030177,2]
[327886813,1716580251160,-151.19086018,0.00030184,7]
[327886815,1716580251169,-150.0,0.00030203,2]
[327886817,1716580251179,-154.57456769,0.00030208,7]
[327886819,1716580251188,-500.0,0.00030294,10]
[327886821,1716580251197,-500.0,0.00030294,10]
[327886823,1716580251207,-6103.1360419,0.00030309,2]
[327886825,1716580251216,-1020.67623655,0.0003031,2]
[327886827,1716580251226,-1137.11922528,0.0003031,2]
[327886829,1716580251235,-150.0,0.00030323,2]
[327886831,1716580251244,-151.19086018,0.00030329,7]
[327886833,1716580251254,-154.4596317,0.00030373,7]
[327886835,1716580251263,-150.0,0.00030387,2]
[327886837,1716580251272,-150.0,0.000304,2]
[327886839,1716580251281,-150.0,0.00030409,2]
[327886841,1716580251291,-150.0,0.00030409,2]
[327886843,1716580251304,-150.0,0.00030435,2]
[327886845,1716580251313,-150.0,0.00030449,2]
[327886847,1716580251322,-150.0,0.00030464,2]
[327886849,1716580251330,-150.0,0.00030514,2]
[327886851,1716580251340,-150.0,0.00030539,2]
[327886853,1716580251349,-150.0,0.00030546,2]
[327886855,1716580251359,-150.0,0.00030549,2]
[327886858,1716580251368,-150.0,0.00030556,2]
[327886860,1716580251377,-157.85307515,0.0003061,2]
[327886862,1716580251386,-150.0,0.00030628,2]
[327886864,1716580251396,-1000.0,0.00030656,2]
[327886866,1716580251405,-153.51597192,0.00030663,7]
[327886868,1716580251415,-150.0,0.00030675,2]
[327886870,1716580251424,-150.0,0.00030682,2]
[327886871,1716580251433,-150.0,0.00030699,2]
[327886872,1716580251442,-150.0,0.00030725,2]
[327886873,1716580251452,-150.0,0.00030755,2]
[327886874,1716580251463,-150.0,0.00030766,2]
[327886875,1716580251472,-300.0,0.00030785,2]
[327886876,1716580251481,-150.0,0.00030787,2]
[327886877,1716580251491,-150.0,0.00030814,2]
[327886878,1716580251500,-150.0,0.00030816,2]
[327886879,1716580251509,-382.52,0.00030828,2]
[327886880,1716580251641,-150.0,0.00030872,2]
[327886881,1716580251651,-150.0,0.00030873,2]
[327886882,1716580251661,-150.0,0.00030877,2]
[327886883,1716580251671,-150.0,0.00030896,2]
[327886884,1716580251681,-150.0,0.00030918,2]
[327886885,1716580251690,-154.57456769,0.00030921,7]
[327886886,1716580251699,-1396.88929655,0.00030929,4]
[327886887,1716580251708,-843.99141811,0.00030929,10]
[327886888,1716580251717,-500.0,0.00030929,5]
[327886889,1716580251728,-155.0,0.00030929,2]
[327886890,1716580251737,-1148.00675945,0.00031,4]
[327886891,1716580251747,-22195.0,0.00031,7]
[327886892,1716580251757,-3019.27828966,0.00031,5]
[327886893,1716580251767,-563.02965132,0.00031,2]
[327886894,1716580251776,-400.0,0.00031,2]
[327886895,1716580251785,-6103.1360419,0.00031036,2]
[327886896,1716580251794,-500.0,0.0003139,10]
[327886897,1716580251807,-500.0,0.0003139,10]
[327886898,1716580251820,-154.30397506,0.00031416,7]
[327886899,1716580251829,-1708.226509,0.00031484,2]
[327886900,1716580251838,-161.0350808,0.00031484,2]
[327886901,1716580251849,-12811.4870969,0.00031484,2]
[327886902,1716580251858,-537.738642,0.00031484,2]
[327886903,1716580251867,-244.40489581,0.00031501,4]
[327886904,1716580251876,-1000.0,0.00031505,2]
[327886905,1716580251886,-157.74362235,0.00031506,2]
[327886906,1716580251897,-500.0,0.00031506,5]
[327886907,1716580251906,-500.0,0.00031506,5]
[327886908,1716580251915,-500.0,0.00031506,5]
[327886909,1716580251925,-500.0,0.00031506,5]
[327886910,1716580251934,-500.0,0.00031506,5]
[327886911,1716580251943,-500.0,0.00031506,5]
[327886912,1716580251952,-500.0,0.00031506,5]
[327886913,1716580251961,-500.0,0.00031506,5]
[327886914,1716580251970,-500.0,0.00031506,5]
[327886915,1716580251979,-250.0,0.00031506,5]
[327886916,1716580251988,-500.0,0.00031506,5]
[327886917,1716580251997,-375.94,0.00031506,5]
[327886918,1716580252006,-500.0,0.00031506,5]
[327886919,1716580252015,-517.50836617,0.00031506,5]
[327886920,1716580252024,-500.0,0.00031506,5]
[327886921,1716580252039,-500.0,0.00031506,5]
[327886922,1716580252050,-511.60120337,0.00031506,5]
[327886923,1716580252059,-500.0,0.00031506,5]
[327886924,1716580252067,-500.0,0.00031506,5]
[327886925,1716580252076,-500.0,0.00031506,5]
[327886926,1716580252085,-500.0,0.00031506,5]
[327886927,1716580252095,-500.0,0.00031506,5]
[327886928,1716580252104,-500.0,0.00031506,5]
[327886929,1716580252114,-500.0,0.00031506,5]
[327886930,1716580252123,-500.0,0.00031506,5]
[327886931,1716580252132,-310.0,0.00031506,5]
[327886932,1716580252141,-500.0,0.00031506,5]
[327886933,1716580252150,-568.1812903,0.00031506,5]
[327886934,1716580252159,-500.0,0.00031506,5]
[327886935,1716580252172,-505.07811965,0.00031506,5]
[327886936,1716580252181,-500.0,0.00031506,5]
[327886937,1716580252190,-500.0,0.00031506,5]
[327886938,1716580252201,-500.0,0.00031506,5]
[327886939,1716580252211,-500.0,0.00031506,5]
[327886940,1716580252220,-500.0,0.00031506,5]
[327886941,1716580252229,-151.0,0.00031506,7]
[327886942,1716580252239,-151.0,0.00031506,7]
[327886943,1716580252248,-156.2746853,0.00031506,5]
[327886944,1716580252257,-500.0,0.00031506,5]
[327886945,1716580252267,-640.12,0.00031506,5]
[327886946,1716580252276,-151.0,0.00031506,7]
[327886947,1716580252285,-151.0,0.00031506,7]
[327886948,1716580252294,-500.0,0.00031506,5]
[327886949,1716580252304,-510.84648335,0.00031506,5]
[327886950,1716580252313,-524.14314257,0.00031506,5]
[327886951,1716580252322,-652.73,0.00031506,5]
[327886952,1716580252332,-500.0,0.00031506,5]
[327886953,1716580252341,-528.02100941,0.00031506,5]
[327886954,1716580252352,-157.24,0.00031506,5]
[327886955,1716580252361,-500.0,0.00031506,5]
[327886956,1716580252370,-500.0,0.00031506,5]
[327886957,1716580252379,-406.76,0.00031506,5]
[327886958,1716580252388,-504.01,0.00031506,5]
[327886959,1716580252397,-302.67036282,0.00031506,5]
[327886960,1716580252407,-359.46929891,0.00031506,5]
[327886961,1716580252416,-500.0,0.00031506,5]
[327886962,1716580252424,-155.94924465,0.00031506,5]
[327886963,1716580252434,-500.0,0.00031506,5]
[327886964,1716580252443,-500.0,0.00031506,5]
[327886965,1716580252452,-500.0,0.00031506,5]
[327886966,1716580252461,-500.0,0.00031506,5]
[327886967,1716580252471,-500.0,0.00031506,5]
[327886968,1716580252480,-500.0,0.00031506,5]
[327886969,1716580252489,-500.0,0.00031506,5]
[327886970,1716580252498,-500.0,0.00031506,5]
[327886971,1716580252507,-500.0,0.00031506,5]
[327886972,1716580252516,-151.988256,0.00031506,7]
[327886973,1716580252525,-500.0,0.00031506,5]
[327886974,1716580252534,-500.0,0.00031506,5]
[327886975,1716580252544,-151.988256,0.00031506,7]
[327886976,1716580252554,-500.0,0.00031506,5]
[327886977,1716580252563,-500.0,0.00031506,5]
[327886978,1716580252573,-155.0,0.00031506,2]
[327886979,1716580252582,-550.58,0.00031506,5]
[327886980,1716580252591,-500.0,0.00031506,5]
[327886981,1716580252600,-500.0,0.00031506,5]
[327886982,1716580252609,-546.71,0.00031506,5]
[327886983,1716580252618,-500.0,0.00031506,5]
[327886984,1716580252627,-272.4467,0.00031506,7]
[327886985,1716580252636,-402.51276888,0.00031506,5]
[327886986,1716580252646,-500.0,0.00031506,5]
[327886987,1716580252655,-634.84,0.00031506,5]
[327886988,1716580252664,-500.0,0.00031506,5]
[327886989,1716580252674,-500.0,0.00031506,5]
[327886990,1716580252683,-500.0,0.00031506,5]
[327886991,1716580252692,-151.0,0.00031506,7]
[327886992,1716580252701,-500.0,0.00031506,5]
[327886993,1716580252710,-500.0,0.00031506,5]
[327886994,1716580252719,-500.0,0.00031506,5]
[327886995,1716580252729,-155.16,0.00031506,5]
[327886996,1716580252738,-500.0,0.00031506,5]
[327886997,1716580252747,-500.0,0.00031506,5]
[327886998,1716580252756,-500.0,0.00031506,5]
[327886999,1716580252766,-151.0,0.00031506,7]
[327887000,1716580252775,-500.0,0.00031506,5]
[327887001,1716580252784,-500.0,0.00031506,5]
[327887002,1716580252793,-500.0,0.00031506,5]
[327887003,1716580252808,-500.0,0.00031506,5]
[327887004,1716580252817,-500.0,0.00031506,5]
[327887005,1716580252826,-500.0,0.00031506,5]
[327887006,1716580252836,-398.51,0.00031506,5]
[327887007,1716580252847,-500.0,0.00031506,5]
[327887008,1716580252856,-500.0,0.00031506,5]
[327887009,1716580252864,-500.0,0.00031506,5]
[327887010,1716580252874,-500.0,0.00031506,5]
[327887011,1716580252882,-500.0,0.00031506,5]
[327887012,1716580252895,-500.0,0.00031506,5]
[327887013,1716580252903,-500.0,0.00031506,5]
[327887014,1716580252913,-500.0,0.00031506,5]
[327887015,1716580252922,-151.0,0.00031506,7]
[327887016,1716580252931,-500.0,0.00031506,5]
[327887017,1716580252940,-528.97714456,0.00031506,5]
[327887018,1716580252949,-500.0,0.00031506,5]
[327887019,1716580252958,-500.0,0.00031506,5]
[327887020,1716580252967,-151.0,0.00031506,7]
[327887021,1716580252976,-151.0,0.00031506,7]
[327887022,1716580252986,-500.0,0.00031506,5]
[327887023,1716580252995,-500.0,0.00031506,5]
[327887024,1716580253003,-500.0,0.00031506,5]
[327887025,1716580253013,-151.0,0.00031506,7]
[327887026,1716580253022,-151.0,0.00031506,7]
[327887027,1716580253031,-500.0,0.00031506,5]
[327887028,1716580253041,-500.0,0.00031506,5]
[327887029,1716580253050,-500.0,0.00031506,5]
[327887030,1716580253059,-536.46,0.00031506,5]
[327887031,1716580253068,-500.0,0.00031506,5]
[327887032,1716580253078,-500.0,0.00031506,5]
[327887033,1716580253087,-151.0,0.00031506,7]
[327887034,1716580253096,-500.0,0.00031506,5]
[327887035,1716580253105,-617.97,0.00031506,5]
[327887036,1716580253114,-500.0,0.00031506,5]
[327887037,1716580253123,-151.0,0.00031506,7]
[327887038,1716580253132,-500.0,0.00031506,5]
[327887039,1716580253142,-500.0,0.00031506,5]
[327887040,1716580253151,-500.0,0.00031506,5]
[327887041,1716580253160,-639.53732376,0.00031506,5]
[327887042,1716580253169,-500.0,0.00031506,5]
[327887043,1716580253178,-500.0,0.00031506,5]
[327887044,1716580253187,-500.0,0.00031506,5]
[327887045,1716580253196,-2498.14,0.00031506,5]
[327887046,1716580253205,-555.5,0.00031506,5]
[327887047,1716580253214,-500.0,0.00031506,5]
[327887048,1716580253224,-500.0,0.00031506,5]
[327887049,1716580253233,-500.0,0.00031506,5]
[327887050,1716580253242,-516.05,0.00031506,5]
[327887051,1716580253251,-500.0,0.00031506,5]
[327887052,1716580253260,-500.0,0.00031506,5]
[327887053,1716580253270,-151.0,0.00031506,7]
[327887054,1716580253279,-500.0,0.00031506,5]
[327887055,1716580253288,-151.0,0.00031506,7]
[327887056,1716580253297,-500.0,0.00031506,5]
[327887057,1716580253308,-500.0,0.00031506,5]
[327887058,1716580253317,-500.0,0.00031506,5]
[327887059,1716580253326,-500.0,0.00031506,5]
[327887060,1716580253336,-500.0,0.00031506,5]
[327887061,1716580253345,-500.0,0.00031506,5]
[327887062,1716580253354,-500.0,0.00031506,5]
[327887063,1716580253363,-500.0,0.00031506,5]
[327887064,1716580253372,-500.0,0.00031506,5]
[327887065,1716580253381,-500.0,0.00031506,5]
[327887066,1716580253392,-500.0,0.00031506,5]
[327887067,1716580253401,-150.0,0.00031506,5]
[327887068,1716580253411,-500.0,0.00031506,5]
[327887069,1716580253419,-500.0,0.00031506,5]
[327887070,1716580253428,-500.0,0.00031506,5]
[327887071,1716580253438,-500.0,0.00031506,5]
[327887072,1716580253447,-554.92,0.00031506,5]
[327887073,1716580253456,-500.0,0.00031506,5]
[327887074,1716580253464,-500.0,0.00031506,5]
[327887075,1716580253473,-500.0,0.00031506,5]
[327887076,1716580253482,-531.51047244,0.00031506,5]
[327887077,1716580253491,-500.0,0.00031506,5]
[327887078,1716580253500,-500.0,0.00031506,5]
[327887079,1716580253510,-500.0,0.00031506,5]
[327887080,1716580253519,-500.0,0.00031506,5]
[327887081,1716580253528,-500.0,0.00031506,5]
[327887082,1716580253537,-500.0,0.00031506,5]
[327887083,1716580253546,-500.0,0.00031506,5]
[327887084,1716580253555,-189.18161282,0.00031506,5]
[327887085,1716580253564,-580.42221877,0.00031506,5]
[327887086,1716580253573,-500.0,0.00031506,5]
[327887087,1716580253584,-500.0,0.00031506,5]
[327887088,1716580253593,-500.0,0.00031506,5]
[327887089,1716580253603,-151.0,0.00031506,7]
[327887090,1716580253612,-500.0,0.00031506,5]
[327887091,1716580253621,-500.0,0.00031506,5]
[327887092,1716580253631,-500.0,0.00031506,5]
[327887093,1716580253641,-608.57,0.00031506,5]
[327887094,1716580253651,-500.0,0.00031506,5]
[327887095,1716580253660,-500.0,0.00031506,5]
[327887096,1716580253670,-624.25,0.00031506,5]
[327887097,1716580253680,-427.52,0.00031506,5]
[327887098,1716580253689,-500.0,0.00031506,5]
[327887099,1716580253699,-500.0,0.00031506,5]
[327887100,1716580253708,-500.0,0.00031506,5]
[327887101,1716580253717,-500.0,0.00031506,5]
[327887102,1716580253726,-500.0,0.00031506,5]
[327887103,1716580253735,-500.0,0.00031506,5]
[327887104,1716580253744,-500.0,0.00031506,5]
[327887105,1716580253753,-500.0,0.00031506,5]
[327887106,1716580253762,-500.0,0.00031506,5]
[327887107,1716580253771,-500.0,0.00031506,5]
[327887108,1716580253781,-560.05,0.00031506,5]
[327887109,1716580253790,-508.92,0.00031506,5]
[327887110,1716580253800,-151.0,0.00031506,7]
[327887111,1716580253817,-500.0,0.00031506,5]
[327887112,1716580253828,-500.0,0.00031506,5]
[327887113,1716580253837,-500.0,0.00031506,5]
[327887114,1716580253846,-151.0,0.00031506,7]
[327887115,1716580253855,-500.0,0.00031506,5]
[327887116,1716580253864,-151.0,0.00031506,7]
[327887117,1716580253873,-391.9,0.00031506,5]
[327887118,1716580253884,-151.0,0.00031506,7]
[327887119,1716580253896,-223.80451658,0.00031506,5]
[327887120,1716580253906,-500.0,0.00031506,5]
[327887121,1716580253916,-552.08,0.00031506,5]
[327887122,1716580253925,-500.0,0.00031506,5]
[327887123,1716580253934,-500.0,0.00031506,5]
[327887124,1716580253943,-151.0,0.00031506,7]
[327887125,1716580253952,-151.0,0.00031506,7]
[327887126,1716580253962,-500.0,0.00031506,5]
[327887127,1716580253970,-500.44292987,0.00031506,5]
[327887128,1716580253979,-500.0,0.00031506,5]
[327887129,1716580253989,-500.0,0.00031506,5]
[327887130,1716580253998,-151.0,0.00031506,7]
[327887131,1716580254007,-151.0,0.00031506,7]
[327887132,1716580254016,-500.0,0.00031506,5]
[327887133,1716580254025,-500.0,0.00031506,5]
[327887134,1716580254034,-500.0,0.00031506,5]
[327887135,1716580254043,-500.0,0.00031506,5]
[327887136,1716580254052,-500.0,0.00031506,5]
[327887137,1716580254062,-151.0,0.00031506,7]
[327887138,1716580254071,-176.883584,0.00031506,7]
[327887139,1716580254080,-500.0,0.00031506,5]
[327887140,1716580254090,-300.554133,0.00031506,7]
[327887141,1716580254099,-500.0,0.00031506,5]
[327887142,1716580254108,-151.0,0.00031506,7]
[327887143,1716580254117,-500.0,0.00031506,5]
[327887144,1716580254126,-500.0,0.00031506,5]
[327887145,1716580254135,-500.0,0.00031506,5]
[327887146,1716580254144,-500.0,0.00031506,5]
[327887147,1716580254155,-531.4081318,0.00031506,5]